[Event "Titled Tuesday Blitz March 01 Late 2022"]
[White "Cardoso Cardoso, Jose Gabriel"]
[Black "Hjartarson, Johann"]
[WhiteFideId "4430492"]
[BlackFideId "2300044"]
[WhiteElo "2451"]
[BlackElo "2484"]
[Result "0-1"]
[Round "09"]
[TimeControl "180+1"]
[Date "2022.03.01"]
[WhiteClock "0:00:03"]
[BlackClock "0:00:04"]

1. d4 {[%clk 0:03:00]}  Nf6 {[%clk 0:02:59]} 2. c4 {[%clk 0:02:58]}  e6 {[%clk 0:02:58]} 3. g3 {[%clk 0:02:56]}  c5 {[%clk 0:02:57]} 4. Nf3 {[%clk 0:02:55]}  cxd4 {[%clk 0:02:56]} 5. Nxd4 {[%clk 0:02:56]}  Bb4+ {[%clk 0:02:55]} 6. Bd2 {[%clk 0:02:55]}  Qb6 {[%clk 0:02:54]} 7. Bg2 {[%clk 0:02:50]}  O-O {[%clk 0:02:47]} 8. O-O {[%clk 0:02:46]}  Bxd2 {[%clk 0:02:42]} 9. Qxd2 {[%clk 0:02:45]}  d5 {[%clk 0:02:41]} 10. cxd5 {[%clk 0:02:39]}  exd5 {[%clk 0:02:40]} 11. Nc3 {[%clk 0:02:39]}  Nc6 {[%clk 0:02:40]} 12. e3 {[%clk 0:02:36]}  Rd8 {[%clk 0:02:32]} 13. Rac1 {[%clk 0:02:35]}  Be6 {[%clk 0:02:22]} 14. Na4 {[%clk 0:02:33]}  Qa5 {[%clk 0:02:08]} 15. Qxa5 {[%clk 0:02:31]}  Nxa5 {[%clk 0:02:08]} 16. Rc2 {[%clk 0:02:27]}  Nc4 {[%clk 0:01:48]} 17. b3 {[%clk 0:02:24]}  Nd6 {[%clk 0:01:44]} 18. Nc5 {[%clk 0:02:19]}  Bc8 {[%clk 0:01:38]} 19. Rfc1 {[%clk 0:02:15]}  h6 {[%clk 0:01:32]} 20. Nd3 {[%clk 0:02:13]}  Nde4 {[%clk 0:01:23]} 21. Rc7 {[%clk 0:02:00]}  Rb8 {[%clk 0:01:07]} 22. Ne5 {[%clk 0:01:57]}  Nd6 {[%clk 0:01:07]} 23. Bf1 {[%clk 0:01:26]}  a6 {[%clk 0:01:02]} 24. a4 {[%clk 0:01:21]}  Re8 {[%clk 0:01:00]} 25. Nd3 {[%clk 0:01:17]}  Nf5 {[%clk 0:00:43]} 26. Nf4 {[%clk 0:01:00]}  Nxd4 {[%clk 0:00:39]} 27. exd4 {[%clk 0:01:01]}  Bf5 {[%clk 0:00:33]} 28. f3 {[%clk 0:00:57]}  g5 {[%clk 0:00:31]} 29. Ne2 {[%clk 0:00:47]}  Re3 {[%clk 0:00:29]} 30. Kf2 {[%clk 0:00:45]}  Rxb3 {[%clk 0:00:26]} 31. a5 {[%clk 0:00:34]}  g4 {[%clk 0:00:23]} 32. fxg4 {[%clk 0:00:33]}  Nxg4+ {[%clk 0:00:21]} 33. Kg1 {[%clk 0:00:31]}  Ne3 {[%clk 0:00:20]} 34. Nf4 {[%clk 0:00:31]}  Be4 {[%clk 0:00:19]} 35. Bh3 {[%clk 0:00:28]}  Rb2 {[%clk 0:00:19]} 36. Nh5 {[%clk 0:00:24]}  b6 {[%clk 0:00:18]} 37. Nf6+ {[%clk 0:00:19]}  Kg7 {[%clk 0:00:18]} 38. Nd7 {[%clk 0:00:20]}  Rd8 {[%clk 0:00:16]} 39. axb6 {[%clk 0:00:19]}  Bf5 {[%clk 0:00:13]} 40. Bxf5 {[%clk 0:00:17]}  Nxf5 {[%clk 0:00:13]} 41. Rd1 {[%clk 0:00:10]}  Ne3 {[%clk 0:00:13]} 42. Re1 {[%clk 0:00:10]}  Nf5 {[%clk 0:00:11]} 43. Ne5 {[%clk 0:00:04]}  Nxd4 {[%clk 0:00:11]} 44. Rxf7+ {[%clk 0:00:05]}  Kg8 {[%clk 0:00:11]} 45. Rf6 {[%clk 0:00:04]}  Re8 {[%clk 0:00:11]} 46. Rxh6 {[%clk 0:00:04]}  Rxe5 {[%clk 0:00:10]} 47. Rg6+ {[%clk 0:00:02]}  Kf7 {[%clk 0:00:09]} 48. Rxe5 {[%clk 0:00:03]}  Nf3+ {[%clk 0:00:09]} 49. Kf1 {[%clk 0:00:03]}  Nxe5 {[%clk 0:00:09]} 50. Rd6 {[%clk 0:00:04]}  Nf3 {[%clk 0:00:09]} 51. Rxd5 {[%clk 0:00:04]}  Nxh2+ {[%clk 0:00:09]} 52. Ke1 {[%clk 0:00:04]}  Rxb6 {[%clk 0:00:09]} 53. Rh5 {[%clk 0:00:03]}  Ng4 {[%clk 0:00:08]} 54. Rf5+ {[%clk 0:00:03]}  Kg6 {[%clk 0:00:07]} 55. Rf4 {[%clk 0:00:03]}  Nf6 {[%clk 0:00:08]} 56. Ke2 {[%clk 0:00:03]}  a5 {[%clk 0:00:08]} 57. Ra4 {[%clk 0:00:02]}  Ra6 {[%clk 0:00:08]} 58. Kf3 {[%clk 0:00:02]}  Nd5 {[%clk 0:00:08]} 59. g4 {[%clk 0:00:03]}  Kg5 {[%clk 0:00:08]} 60. Rd4 {[%clk 0:00:03]}  Nc3 {[%clk 0:00:08]} 61. Rc4 {[%clk 0:00:03]}  Na2 {[%clk 0:00:06]} 62. Rc5+ {[%clk 0:00:03]}  Kg6 {[%clk 0:00:05]} 63. Kf4 {[%clk 0:00:03]}  a4 {[%clk 0:00:05]} 64. g5 {[%clk 0:00:02]}  a3 {[%clk 0:00:06]} 65. Rc8 {[%clk 0:00:02]}  Nb4 {[%clk 0:00:06]} 66. Rg8+ {[%clk 0:00:02]}  Kf7 {[%clk 0:00:06]} 67. Rb8 {[%clk 0:00:03]}  a2 {[%clk 0:00:06]} 68. Rb7+ {[%clk 0:00:04]}  Ke6 {[%clk 0:00:05]} 69. Rxb4 {[%clk 0:00:03]}  a1=Q {[%clk 0:00:05]} 70. Re4+ {[%clk 0:00:04]}  Kd5 {[%clk 0:00:05]} 71. Re1 {[%clk 0:00:05]}  Ra4+ {[%clk 0:00:05]} 72. Re4 {[%clk 0:00:03]}  Qf1+ {[%clk 0:00:04]} 0-1


[Site "https://www.chess.com"]

[Event "Titled Tuesday Blitz March 01 Late 2022"]
[White "Caruana, Fabiano"]
[Black "Riazantsev, Alexander"]
[WhiteFideId "2020009"]
[BlackFideId "4125029"]
[WhiteElo "2744"]
[BlackElo "2595"]
[Result "1/2-1/2"]
[Round "09"]
[TimeControl "180+1"]
[Date "2022.03.01"]
[WhiteClock "0:00:11"]
[BlackClock "0:00:08"]

1. d4 {[%clk 0:03:00]}  d5 {[%clk 0:02:58]} 2. Bf4 {[%clk 0:03:00]}  Nf6 {[%clk 0:02:56]} 3. e3 {[%clk 0:03:01]}  c5 {[%clk 0:02:56]} 4. Nf3 {[%clk 0:02:58]}  Nc6 {[%clk 0:02:56]} 5. Be2 {[%clk 0:02:58]}  cxd4 {[%clk 0:02:54]} 6. exd4 {[%clk 0:02:59]}  Bf5 {[%clk 0:02:53]} 7. c3 {[%clk 0:02:56]}  e6 {[%clk 0:02:53]} 8. O-O {[%clk 0:02:57]}  Bd6 {[%clk 0:02:52]} 9. Bxd6 {[%clk 0:02:56]}  Qxd6 {[%clk 0:02:53]} 10. Nbd2 {[%clk 0:02:56]}  h6 {[%clk 0:02:52]} 11. Re1 {[%clk 0:02:55]}  O-O {[%clk 0:02:52]} 12. Nf1 {[%clk 0:02:51]}  Qc7 {[%clk 0:02:51]} 13. Ng3 {[%clk 0:02:49]}  Bh7 {[%clk 0:02:51]} 14. Bd3 {[%clk 0:02:49]}  Bxd3 {[%clk 0:02:50]} 15. Qxd3 {[%clk 0:02:50]}  Rab8 {[%clk 0:02:50]} 16. a4 {[%clk 0:02:48]}  a6 {[%clk 0:02:50]} 17. Ne5 {[%clk 0:02:45]}  Nxe5 {[%clk 0:02:49]} 18. dxe5 {[%clk 0:02:46]}  Nd7 {[%clk 0:02:49]} 19. Nh5 {[%clk 0:02:35]}  g6 {[%clk 0:01:51]} 20. Qg3 {[%clk 0:02:32]}  Kh7 {[%clk 0:01:51]} 21. Nf4 {[%clk 0:02:32]}  Rbc8 {[%clk 0:01:36]} 22. Rad1 {[%clk 0:02:24]}  Qb6 {[%clk 0:01:21]} 23. Nd3 {[%clk 0:01:38]}  Rc4 {[%clk 0:01:17]} 24. Ra1 {[%clk 0:01:27]}  Qc7 {[%clk 0:01:12]} 25. Qf3 {[%clk 0:01:15]}  Kg7 {[%clk 0:01:10]} 26. h3 {[%clk 0:01:15]}  Rc8 {[%clk 0:01:07]} 27. Re2 {[%clk 0:01:04]}  Qd8 {[%clk 0:01:06]} 28. g3 {[%clk 0:01:02]}  Nc5 {[%clk 0:00:58]} 29. Nxc5 {[%clk 0:01:02]}  R8xc5 {[%clk 0:00:56]} 30. h4 {[%clk 0:00:59]}  h5 {[%clk 0:00:56]} 31. Rd2 {[%clk 0:00:59]}  Qe7 {[%clk 0:00:54]} 32. Rd3 {[%clk 0:00:55]}  Rc7 {[%clk 0:00:52]} 33. Re3 {[%clk 0:00:39]}  Rg4 {[%clk 0:00:49]} 34. Kh2 {[%clk 0:00:38]}  Rcc4 {[%clk 0:00:49]} 35. b3 {[%clk 0:00:35]}  Rc7 {[%clk 0:00:40]} 36. Rd1 {[%clk 0:00:32]}  b5 {[%clk 0:00:37]} 37. axb5 {[%clk 0:00:32]}  axb5 {[%clk 0:00:38]} 38. Rd4 {[%clk 0:00:26]}  Rxd4 {[%clk 0:00:35]} 39. cxd4 {[%clk 0:00:27]}  b4 {[%clk 0:00:36]} 40. Kg2 {[%clk 0:00:26]}  Rc2 {[%clk 0:00:35]} 41. Qf4 {[%clk 0:00:24]}  Rc3 {[%clk 0:00:34]} 42. Rf3 {[%clk 0:00:22]}  Rxf3 {[%clk 0:00:32]} 43. Qxf3 {[%clk 0:00:23]}  Qa7 {[%clk 0:00:26]} 44. Qf4 {[%clk 0:00:20]}  Qc7 {[%clk 0:00:19]} 45. Qe3 {[%clk 0:00:16]}  Qc2 {[%clk 0:00:17]} 46. Kf3 {[%clk 0:00:14]}  Qd1+ {[%clk 0:00:17]} 47. Kg2 {[%clk 0:00:14]}  Qc2 {[%clk 0:00:17]} 48. Qf3 {[%clk 0:00:14]}  Qd2 {[%clk 0:00:16]} 49. Qe3 {[%clk 0:00:11]}  Qc2 {[%clk 0:00:08]} 1/2-1/2


[Site "https://www.chess.com"]

[Event "Titled Tuesday Blitz March 01 Late 2022"]
[White "Celestino, Rafael Teixeira"]
[Black "Papayan, Oleg"]
[WhiteFideId "2108925"]
[BlackFideId "4193911"]
[WhiteElo "2260"]
[BlackElo "2038"]
[Result "1-0"]
[Round "09"]
[TimeControl "180+1"]
[Date "2022.03.02"]
[WhiteClock "0:00:03"]
[BlackClock "0:00:01"]

1. e4 {[%clk 0:03:00]}  e5 {[%clk 0:02:59]} 2. Nf3 {[%clk 0:03:01]}  Nc6 {[%clk 0:02:59]} 3. Bc4 {[%clk 0:03:01]}  Nf6 {[%clk 0:02:58]} 4. Ng5 {[%clk 0:03:01]}  Bc5 {[%clk 0:02:59]} 5. Bxf7+ {[%clk 0:02:41]}  Ke7 {[%clk 0:02:59]} 6. Bb3 {[%clk 0:02:25]}  d6 {[%clk 0:02:59]} 7. O-O {[%clk 0:02:20]}  Bg4 {[%clk 0:02:58]} 8. Qe1 {[%clk 0:02:18]}  Qe8 {[%clk 0:02:50]} 9. h3 {[%clk 0:02:16]}  Bh5 {[%clk 0:02:37]} 10. Ne6 {[%clk 0:02:07]}  Qg6 {[%clk 0:02:27]} 11. Nxc5 {[%clk 0:02:02]}  dxc5 {[%clk 0:02:25]} 12. d3 {[%clk 0:01:55]}  Bf3 {[%clk 0:02:18]} 13. g3 {[%clk 0:01:55]}  Nd4 {[%clk 0:02:10]} 14. Qe3 {[%clk 0:01:36]}  Qh5 {[%clk 0:02:03]} 15. Qg5 {[%clk 0:01:15]}  Ne2+ {[%clk 0:01:49]} 16. Kh2 {[%clk 0:01:07]}  Rhf8 {[%clk 0:00:24]} 17. Qxh5 {[%clk 0:00:57]}  Nxh5 {[%clk 0:00:24]} 18. Bg5+ {[%clk 0:00:58]}  Kd6 {[%clk 0:00:24]} 19. Nc3 {[%clk 0:00:52]}  h6 {[%clk 0:00:22]} 20. Be3 {[%clk 0:00:47]}  Nd4 {[%clk 0:00:17]} 21. g4 {[%clk 0:00:31]}  Nf4 {[%clk 0:00:12]} 22. Bxf4 {[%clk 0:00:26]}  Rxf4 {[%clk 0:00:12]} 23. Nd5 {[%clk 0:00:22]}  Rff8 {[%clk 0:00:08]} 24. c3 {[%clk 0:00:20]}  Nxb3 {[%clk 0:00:05]} 25. axb3 {[%clk 0:00:21]}  a6 {[%clk 0:00:05]} 26. Kg3 {[%clk 0:00:18]}  Be2 {[%clk 0:00:04]} 27. Rfe1 {[%clk 0:00:18]}  Bxd3 {[%clk 0:00:05]} 28. c4 {[%clk 0:00:16]}  c6 {[%clk 0:00:03]} 29. Nc3 {[%clk 0:00:15]}  Ke6 {[%clk 0:00:02]} 30. Rad1 {[%clk 0:00:16]}  Bc2 {[%clk 0:00:03]} 31. Rc1 {[%clk 0:00:12]}  Bxb3 {[%clk 0:00:04]} 32. Ne2 {[%clk 0:00:12]}  Rad8 {[%clk 0:00:03]} 33. Rc3 {[%clk 0:00:12]}  Ba4 {[%clk 0:00:02]} 34. Nc1 {[%clk 0:00:11]}  Rd1 {[%clk 0:00:03]} 35. Ree3 {[%clk 0:00:09]}  Rfd8 {[%clk 0:00:02]} 36. Nd3 {[%clk 0:00:09]}  Bc2 {[%clk 0:00:02]} 37. Ne1 {[%clk 0:00:05]}  Ba4 {[%clk 0:00:01]} 38. Nd3 {[%clk 0:00:05]}  Rd2 {[%clk 0:00:01]} 39. f4 {[%clk 0:00:03]} 1-0


[Site "https://www.chess.com"]

[Event "Titled Tuesday Blitz March 01 Late 2022"]
[White "Chernomordik, Pavel"]
[Black "Kanyamarala, Tarun"]
[WhiteFideId "2804530"]
[BlackFideId "45004714"]
[WhiteElo "2249"]
[BlackElo "2144"]
[Result "1-0"]
[Round "09"]
[TimeControl "180+1"]
[Date "2022.03.02"]
[WhiteClock "0:02:06"]
[BlackClock "0:00:06"]

1. e4 {[%clk 0:03:00]}  c5 {[%clk 0:02:59]} 2. Nc3 {[%clk 0:03:00]}  Nc6 {[%clk 0:02:59]} 3. Bb5 {[%clk 0:02:59]}  Nd4 {[%clk 0:02:58]} 4. Bc4 {[%clk 0:02:59]}  e6 {[%clk 0:02:55]} 5. Nge2 {[%clk 0:02:59]}  Nf6 {[%clk 0:02:55]} 6. O-O {[%clk 0:02:58]}  d5 {[%clk 0:02:54]} 7. exd5 {[%clk 0:02:58]}  exd5 {[%clk 0:02:53]} 8. Nxd5 {[%clk 0:02:58]}  Nxd5 {[%clk 0:02:46]} 9. Nxd4 {[%clk 0:02:58]}  cxd4 {[%clk 0:02:41]} 10. Qh5 {[%clk 0:02:57]}  Be6 {[%clk 0:02:00]} 11. Re1 {[%clk 0:02:55]}  Be7 {[%clk 0:01:03]} 12. Rxe6 {[%clk 0:02:51]}  g6 {[%clk 0:01:00]} 13. Qe5 {[%clk 0:02:20]}  O-O {[%clk 0:01:00]} 14. Bxd5 {[%clk 0:02:20]}  Bc5 {[%clk 0:00:11]} 15. d3 {[%clk 0:02:09]}  Rc8 {[%clk 0:00:10]} 16. Bh6 {[%clk 0:02:07]}  Re8 {[%clk 0:00:06]} 17. Qg7# {[%clk 0:02:06]} 1-0


[Site "https://www.chess.com"]

[Event "Titled Tuesday Blitz March 01 Late 2022"]
[White "Clawitter, Craig"]
[Black "Elissalt Cardenas, Hector"]
[WhiteFideId "2023105"]
[BlackFideId "3500632"]
[WhiteElo "2238"]
[BlackElo "2159"]
[Result "0-1"]
[Round "09"]
[TimeControl "180+1"]
[Date "2022.03.02"]
[WhiteClock "0:00:01"]
[BlackClock "0:00:11"]

1. e4 {[%clk 0:03:00]}  d6 {[%clk 0:02:59]} 2. d4 {[%clk 0:02:59]}  Nf6 {[%clk 0:02:59]} 3. Nc3 {[%clk 0:03:00]}  e5 {[%clk 0:02:59]} 4. Nf3 {[%clk 0:02:56]}  Nbd7 {[%clk 0:02:57]} 5. Be3 {[%clk 0:02:51]}  Be7 {[%clk 0:02:49]} 6. h3 {[%clk 0:02:46]}  c6 {[%clk 0:02:36]} 7. a4 {[%clk 0:02:42]}  a5 {[%clk 0:02:24]} 8. g4 {[%clk 0:02:41]}  O-O {[%clk 0:02:11]} 9. Bg2 {[%clk 0:02:38]}  b6 {[%clk 0:02:01]} 10. O-O {[%clk 0:02:35]}  Ba6 {[%clk 0:01:56]} 11. Re1 {[%clk 0:02:31]}  h6 {[%clk 0:01:49]} 12. Qd2 {[%clk 0:02:00]}  Qc7 {[%clk 0:01:42]} 13. g5 {[%clk 0:01:56]}  hxg5 {[%clk 0:01:38]} 14. Bxg5 {[%clk 0:01:56]}  Rfe8 {[%clk 0:01:17]} 15. Kh1 {[%clk 0:01:45]}  Nh5 {[%clk 0:01:13]} 16. Rg1 {[%clk 0:01:32]}  Nf8 {[%clk 0:01:06]} 17. Nh4 {[%clk 0:01:02]}  Bxg5 {[%clk 0:00:56]} 18. Qxg5 {[%clk 0:01:01]}  Nf4 {[%clk 0:00:56]} 19. dxe5 {[%clk 0:00:39]}  dxe5 {[%clk 0:00:51]} 20. Nf5 {[%clk 0:00:31]}  N8e6 {[%clk 0:00:50]} 21. Qg3 {[%clk 0:00:23]}  Kf8 {[%clk 0:00:43]} 22. Rad1 {[%clk 0:00:18]}  Rad8 {[%clk 0:00:34]} 23. Bf3 {[%clk 0:00:18]}  g6 {[%clk 0:00:32]} 24. Ne3 {[%clk 0:00:13]}  Rxd1 {[%clk 0:00:32]} 25. Rxd1 {[%clk 0:00:13]}  Rd8 {[%clk 0:00:31]} 26. h4 {[%clk 0:00:11]}  Rxd1+ {[%clk 0:00:30]} 27. Bxd1 {[%clk 0:00:11]}  Qd8 {[%clk 0:00:30]} 28. Bg4 {[%clk 0:00:08]}  Nd4 {[%clk 0:00:27]} 29. h5 {[%clk 0:00:06]}  Qg5 {[%clk 0:00:23]} 30. hxg6 {[%clk 0:00:05]}  fxg6 {[%clk 0:00:23]} 31. Bd7 {[%clk 0:00:03]}  Qh6+ {[%clk 0:00:18]} 32. Qh2 {[%clk 0:00:03]}  Qg7 {[%clk 0:00:18]} 33. Bg4 {[%clk 0:00:02]}  Ke7 {[%clk 0:00:15]} 34. Kg1 {[%clk 0:00:02]}  g5 {[%clk 0:00:14]} 35. Bf5 {[%clk 0:00:01]}  Nde2+ {[%clk 0:00:11]} 0-1


[Site "https://www.chess.com"]

[Event "Titled Tuesday Blitz March 01 Late 2022"]
[White "Dobre, Claudiu-Cristian"]
[Black "Novikova, Galina"]
[WhiteFideId "1211854"]
[BlackFideId "4157095"]
[WhiteElo "2207"]
[BlackElo "1863"]
[Result "1-0"]
[Round "09"]
[TimeControl "180+1"]
[Date "2022.03.02"]
[WhiteClock "0:00:49"]
[BlackClock "0:01:02"]

1. c4 {[%clk 0:03:00]}  f5 {[%clk 0:02:57]} 2. Nf3 {[%clk 0:02:59]}  e6 {[%clk 0:02:57]} 3. d4 {[%clk 0:02:56]}  Nf6 {[%clk 0:02:58]} 4. g3 {[%clk 0:02:56]}  Be7 {[%clk 0:02:59]} 5. Bg2 {[%clk 0:02:56]}  O-O {[%clk 0:03:00]} 6. O-O {[%clk 0:02:56]}  d6 {[%clk 0:03:01]} 7. b3 {[%clk 0:02:42]}  Nc6 {[%clk 0:03:01]} 8. Bb2 {[%clk 0:02:42]}  Qe8 {[%clk 0:02:53]} 9. Nfd2 {[%clk 0:02:38]}  e5 {[%clk 0:02:51]} 10. e3 {[%clk 0:02:05]}  e4 {[%clk 0:02:38]} 11. a3 {[%clk 0:02:05]}  a5 {[%clk 0:02:32]} 12. Nc3 {[%clk 0:02:04]}  Qg6 {[%clk 0:02:31]} 13. f3 {[%clk 0:01:54]}  exf3 {[%clk 0:02:27]} 14. Qxf3 {[%clk 0:01:53]}  Ng4 {[%clk 0:02:21]} 15. Nd5 {[%clk 0:01:46]}  Bg5 {[%clk 0:02:17]} 16. h3 {[%clk 0:01:37]}  Nh6 {[%clk 0:02:16]} 17. Nxc7 {[%clk 0:01:36]}  f4 {[%clk 0:01:56]} 18. exf4 {[%clk 0:01:29]}  Qc2 {[%clk 0:01:55]} 19. Qc3 {[%clk 0:01:29]}  Nxd4 {[%clk 0:01:38]} 20. Qxc2 {[%clk 0:01:25]}  Nxc2 {[%clk 0:01:38]} 21. fxg5 {[%clk 0:01:23]}  Nxa1 {[%clk 0:01:36]} 22. Rxf8+ {[%clk 0:01:22]}  Kxf8 {[%clk 0:01:36]} 23. Nxa8 {[%clk 0:01:19]}  Nf5 {[%clk 0:01:31]} 24. Bxa1 {[%clk 0:01:18]}  Nxg3 {[%clk 0:01:31]} 25. Kf2 {[%clk 0:01:16]}  Nh5 {[%clk 0:01:29]} 26. Ke3 {[%clk 0:01:15]}  a4 {[%clk 0:01:25]} 27. b4 {[%clk 0:01:14]}  Bf5 {[%clk 0:01:20]} 28. Nc7 {[%clk 0:01:11]}  Bc2 {[%clk 0:01:18]} 29. Nd5 {[%clk 0:01:08]}  Ng3 {[%clk 0:01:17]} 30. Ne4 {[%clk 0:01:04]}  Nf5+ {[%clk 0:01:14]} 31. Kf4 {[%clk 0:00:58]}  g6 {[%clk 0:01:15]} 32. Ne3 {[%clk 0:00:56]}  Nh4 {[%clk 0:01:07]} 33. Nxd6 {[%clk 0:00:55]}  Bb3 {[%clk 0:01:03]} 34. Nxb7 {[%clk 0:00:53]}  Ke7 {[%clk 0:01:03]} 35. Na5 {[%clk 0:00:52]}  Ba2 {[%clk 0:01:03]} 36. Bc3 {[%clk 0:00:50]}  Kd7 {[%clk 0:01:03]} 37. Be1 {[%clk 0:00:50]}  Nf5 {[%clk 0:01:01]} 38. Nxf5 {[%clk 0:00:49]}  gxf5 {[%clk 0:01:02]} 39. Bf1 {[%clk 0:00:49]}  Bb1 {[%clk 0:01:02]} 40. c5 {[%clk 0:00:49]} 1-0


[Site "https://www.chess.com"]

[Event "Titled Tuesday Blitz March 01 Late 2022"]
[White "Estrada Nieto, Julian"]
[Black "Calcada, Lucas Galvan"]
[WhiteFideId "5101018"]
[BlackFideId "22746099"]
[WhiteElo "2246"]
[BlackElo "1402"]
[Result "1/2-1/2"]
[Round "09"]
[TimeControl "180+1"]
[Date "2022.03.02"]
[WhiteClock "0:00:04"]
[BlackClock "0:00:10"]

1. e4 {[%clk 0:02:52]}  c5 {[%clk 0:02:58]} 2. Nf3 {[%clk 0:02:52]}  d6 {[%clk 0:02:54]} 3. d4 {[%clk 0:02:51]}  cxd4 {[%clk 0:02:47]} 4. Qxd4 {[%clk 0:02:52]}  a6 {[%clk 0:02:45]} 5. Bc4 {[%clk 0:02:52]}  Qc7 {[%clk 0:02:44]} 6. Bb3 {[%clk 0:02:45]}  e6 {[%clk 0:02:44]} 7. Nc3 {[%clk 0:02:44]}  Nc6 {[%clk 0:02:42]} 8. Qd3 {[%clk 0:02:43]}  b5 {[%clk 0:02:39]} 9. Bf4 {[%clk 0:02:42]}  Bb7 {[%clk 0:02:35]} 10. O-O-O {[%clk 0:02:30]}  O-O-O {[%clk 0:02:34]} 11. Rhe1 {[%clk 0:02:18]}  Be7 {[%clk 0:02:20]} 12. Kb1 {[%clk 0:02:16]}  Na5 {[%clk 0:02:04]} 13. Qe2 {[%clk 0:01:59]}  Nc4 {[%clk 0:01:51]} 14. Bxc4 {[%clk 0:01:56]}  Qxc4 {[%clk 0:01:50]} 15. Qxc4+ {[%clk 0:01:53]}  bxc4 {[%clk 0:01:51]} 16. Rd4 {[%clk 0:01:48]}  d5 {[%clk 0:01:49]} 17. exd5 {[%clk 0:01:45]}  exd5 {[%clk 0:01:46]} 18. Ne5 {[%clk 0:01:43]}  Bc5 {[%clk 0:01:43]} 19. Rd2 {[%clk 0:01:41]}  Nf6 {[%clk 0:01:27]} 20. Nxf7 {[%clk 0:01:36]}  Rhe8 {[%clk 0:01:28]} 21. Red1 {[%clk 0:01:22]}  Rd7 {[%clk 0:01:25]} 22. Ne5 {[%clk 0:01:14]}  Rde7 {[%clk 0:01:24]} 23. Nf3 {[%clk 0:01:09]}  Ne4 {[%clk 0:01:13]} 24. Nxe4 {[%clk 0:01:01]}  Rxe4 {[%clk 0:01:12]} 25. Bg3 {[%clk 0:00:50]}  h6 {[%clk 0:01:10]} 26. c3 {[%clk 0:00:47]}  g5 {[%clk 0:00:59]} 27. h4 {[%clk 0:00:38]}  g4 {[%clk 0:00:58]} 28. Nd4 {[%clk 0:00:38]}  Bf8 {[%clk 0:00:51]} 29. Kc2 {[%clk 0:00:35]}  h5 {[%clk 0:00:50]} 30. f3 {[%clk 0:00:31]}  Re3 {[%clk 0:00:41]} 31. Nf5 {[%clk 0:00:27]}  Re2 {[%clk 0:00:37]} 32. Bd6 {[%clk 0:00:20]}  Rxd2+ {[%clk 0:00:28]} 33. Rxd2 {[%clk 0:00:19]}  Kd7 {[%clk 0:00:25]} 34. Bxf8 {[%clk 0:00:18]}  Rxf8 {[%clk 0:00:26]} 35. Nd4 {[%clk 0:00:16]}  gxf3 {[%clk 0:00:24]} 36. Nxf3 {[%clk 0:00:16]}  Kd6 {[%clk 0:00:18]} 37. Re2 {[%clk 0:00:15]}  Bc8 {[%clk 0:00:17]} 38. Re5 {[%clk 0:00:10]}  Bf5+ {[%clk 0:00:17]} 39. Kd2 {[%clk 0:00:09]}  Be4 {[%clk 0:00:16]} 40. Rxh5 {[%clk 0:00:08]}  Bxf3 {[%clk 0:00:16]} 41. gxf3 {[%clk 0:00:08]}  Rxf3 {[%clk 0:00:17]} 42. Rh6+ {[%clk 0:00:08]}  Kc5 {[%clk 0:00:17]} 43. Rxa6 {[%clk 0:00:08]}  Rf2+ {[%clk 0:00:18]} 44. Kc1 {[%clk 0:00:08]}  Rf1+ {[%clk 0:00:17]} 45. Kc2 {[%clk 0:00:08]}  Rf2+ {[%clk 0:00:18]} 46. Kd1 {[%clk 0:00:07]}  Rf1+ {[%clk 0:00:18]} 47. Ke2 {[%clk 0:00:05]}  Rb1 {[%clk 0:00:18]} 48. Ra5+ {[%clk 0:00:05]}  Kd6 {[%clk 0:00:17]} 49. Rb5 {[%clk 0:00:05]}  Rh1 {[%clk 0:00:15]} 50. a4 {[%clk 0:00:04]}  Rxh4 {[%clk 0:00:16]} 51. Ke3 {[%clk 0:00:04]}  Rh1 {[%clk 0:00:15]} 52. Rb6+ {[%clk 0:00:02]}  Kc5 {[%clk 0:00:14]} 53. a5 {[%clk 0:00:03]}  Ra1 {[%clk 0:00:14]} 54. Ra6 {[%clk 0:00:02]}  Ra2 {[%clk 0:00:14]} 55. Rb6 {[%clk 0:00:01]}  Rxa5 {[%clk 0:00:13]} 56. Rb8 {[%clk 0:00:02]}  Ra1 {[%clk 0:00:13]} 57. Rc8+ {[%clk 0:00:02]}  Kd6 {[%clk 0:00:12]} 58. Rd8+ {[%clk 0:00:02]}  Kc6 {[%clk 0:00:12]} 59. Rc8+ {[%clk 0:00:02]}  Kd7 {[%clk 0:00:12]} 60. Rf8 {[%clk 0:00:02]}  Re1+ {[%clk 0:00:10]} 61. Kd4 {[%clk 0:00:03]}  Rd1+ {[%clk 0:00:10]} 62. Kc5 {[%clk 0:00:02]}  Rd2 {[%clk 0:00:09]} 63. Rf7+ {[%clk 0:00:03]}  Ke6 {[%clk 0:00:08]} 64. Rc7 {[%clk 0:00:02]}  Rxb2 {[%clk 0:00:07]} 65. Rc6+ {[%clk 0:00:03]}  Ke5 {[%clk 0:00:08]} 66. Rd6 {[%clk 0:00:04]}  Rd2 {[%clk 0:00:08]} 67. Rd8 {[%clk 0:00:03]}  Rd3 {[%clk 0:00:08]} 68. Re8+ {[%clk 0:00:04]}  Kf4 {[%clk 0:00:08]} 69. Rd8 {[%clk 0:00:04]}  Ke4 {[%clk 0:00:07]} 70. Re8+ {[%clk 0:00:05]}  Kf3 {[%clk 0:00:08]} 71. Rf8+ {[%clk 0:00:05]}  Ke2 {[%clk 0:00:07]} 72. Rd8 {[%clk 0:00:05]}  Kd2 {[%clk 0:00:07]} 73. Kb4 {[%clk 0:00:05]}  Kc2 {[%clk 0:00:07]} 74. Rd6 {[%clk 0:00:04]}  Rxc3 {[%clk 0:00:07]} 75. Rxd5 {[%clk 0:00:04]}  Rb3+ {[%clk 0:00:08]} 76. Kxc4 {[%clk 0:00:04]}  Rb8 {[%clk 0:00:09]} 77. Kc5 {[%clk 0:00:04]}  Rc8+ {[%clk 0:00:09]} 78. Kd6 {[%clk 0:00:04]}  Rd8+ {[%clk 0:00:09]} 79. Ke5 {[%clk 0:00:04]}  Rxd5+ {[%clk 0:00:10]} 80. Kxd5 {[%clk 0:00:04]} 1/2-1/2


[Site "https://www.chess.com"]